[Event "2026 Biel Blitz Open"]
[Site "Biel, CH"]
[Date "2026.07.19"]
[Round "5"]
[White "Ling, Chenxuan"]
[Black "Filipovic, Branko"]
[Result "1/2-1/2"]
[Board "5"]
[TimeControl "180+2"]
[WhiteFideId "30983118"]
[BlackFideId "14507951"]
[WhiteElo "2235"]
[BlackElo "2109"]
[WhiteTitle "CM"]
[BlackTitle "IM"]
[WhiteClock "0:02:53"]
[BlackClock "0:00:42"]
[Variant "Standard"]
[EndDate "2026.07.19"]
[EndTime "13:07:13"]

1. d4 {[%clk 0:03:04]}  Nf6 {[%clk 0:03:03]} 2. c4 {[%clk 0:03:04]}  b6 {[%clk 0:03:04]} 3. Nc3 {[%clk 0:03:04]}  Bb7 {[%clk 0:03:06]}
4. Nf3 {[%clk 0:03:04]}  e6 {[%clk 0:03:05]} 5. e3 {[%clk 0:03:04]}  Bb4 {[%clk 0:03:05]} 6. Bd3 {[%clk 0:03:05]}  Ne4 {[%clk 0:03:07]}
7. Bd2 {[%clk 0:03:05]}  Bxc3 {[%clk 0:03:05]} 8. Bxc3 {[%clk 0:03:06]}  O-O {[%clk 0:02:56]} 9. O-O {[%clk 0:03:06]}  f5 {[%clk 0:02:55]}
10. Nd2 {[%clk 0:03:06]}  Nxc3 {[%clk 0:02:55]} 11. bxc3 {[%clk 0:03:07]}  d6 {[%clk 0:02:50]} 12. f3 {[%clk 0:03:08]}  Nd7 {[%clk 0:02:49]}
13. Qc2 {[%clk 0:03:08]}  g6 {[%clk 0:02:45]} 14. Rae1 {[%clk 0:03:06]}  e5 {[%clk 0:02:36]} 15. e4 {[%clk 0:03:04]}  f4 {[%clk 0:02:36]}
16. Nb3 {[%clk 0:03:00]}  Qe7 {[%clk 0:02:33]} 17. Rd1 {[%clk 0:02:59]}  Rfd8 {[%clk 0:02:09]} 18. Qf2 {[%clk 0:02:58]}  a5 {[%clk 0:02:07]}
19. c5 {[%clk 0:02:47]}  dxc5 {[%clk 0:01:42]} 20. dxc5 {[%clk 0:02:42]}  Nxc5 {[%clk 0:01:42]} 21. Nxc5 {[%clk 0:02:42]}  Qxc5 {[%clk 0:01:42]}
22. Qxc5 {[%clk 0:02:42]}  bxc5 {[%clk 0:01:44]} 23. Bc4+ {[%clk 0:02:43]}  Kf8 {[%clk 0:01:42]} 24. Kf2 {[%clk 0:02:42]}  Ke7 {[%clk 0:01:37]}
25. Ke2 {[%clk 0:02:42]}  Bc6 {[%clk 0:01:32]} 26. Rxd8 {[%clk 0:02:36]}  Rxd8 {[%clk 0:01:33]} 27. Rb1 {[%clk 0:02:37]}  g5 {[%clk 0:01:24]}
28. h4 {[%clk 0:02:18]}  g4 {[%clk 0:01:21]} 29. Bd3 {[%clk 0:02:15]}  g3 {[%clk 0:01:16]} 30. Bc4 {[%clk 0:02:16]}  h6 {[%clk 0:01:13]}
31. Rb2 {[%clk 0:02:13]}  Ra8 {[%clk 0:01:04]} 32. a3 {[%clk 0:02:14]}  Rd8 {[%clk 0:01:04]} 33. Rb1 {[%clk 0:02:14]}  Ra8 {[%clk 0:01:00]}
34. Kd3 {[%clk 0:02:07]}  Rd8+ {[%clk 0:01:00]} 35. Ke2 {[%clk 0:02:07]}  Ke8 {[%clk 0:00:57]} 36. Bb5 {[%clk 0:02:04]}  Rd6 {[%clk 0:00:41]}
37. Bc4 {[%clk 0:02:50]}  Rd8 {[%clk 0:00:40]} 38. Bb5 {[%clk 0:02:51]}  Rd6 {[%clk 0:00:41]} 39. Bc4 {[%clk 0:02:51]}  Rd8 {[%clk 0:00:42]}
40. Bb5 {[%clk 0:02:53]} 1/2-1/2

[Event "2026 Biel Blitz Open"]
[Site "Biel, CH"]
[Date "2026.07.19"]
[Round "5"]
[White "Ghosh, Diptayan"]
[Black "Safarli, Eltaj"]
[Result "1/2-1/2"]
[Board "6"]
[TimeControl "180+2"]
[WhiteFideId "5045207"]
[BlackFideId "13402129"]
[WhiteElo "2530"]
[BlackElo "2619"]
[WhiteTitle "GM"]
[BlackTitle "GM"]
[WhiteClock "0:00:15"]
[BlackClock "0:00:27"]
[Variant "Standard"]
[EndDate "2026.07.19"]
[EndTime "13:09:24"]

1. Nf3 {[%clk 0:03:02]}  Nf6 {[%clk 0:03:04]} 2. g3 {[%clk 0:03:03]}  g6 {[%clk 0:03:05]} 3. Bg2 {[%clk 0:03:04]}  Bg7 {[%clk 0:03:06]}
4. d4 {[%clk 0:03:05]}  d5 {[%clk 0:03:07]} 5. O-O {[%clk 0:03:05]}  O-O {[%clk 0:03:08]} 6. c4 {[%clk 0:03:07]}  c6 {[%clk 0:03:08]}
7. Qa4 {[%clk 0:03:07]}  Nfd7 {[%clk 0:02:52]} 8. cxd5 {[%clk 0:03:05]}  Nb6 {[%clk 0:02:53]} 9. Qd1 {[%clk 0:03:02]}  cxd5 {[%clk 0:02:54]}
10. Nc3 {[%clk 0:03:03]}  Nc6 {[%clk 0:02:54]} 11. e3 {[%clk 0:02:59]}  Bf5 {[%clk 0:02:52]} 12. b3 {[%clk 0:03:00]}  Qd7 {[%clk 0:02:41]}
13. Ba3 {[%clk 0:03:00]}  Rfe8 {[%clk 0:02:33]} 14. Rc1 {[%clk 0:02:58]}  Rad8 {[%clk 0:02:30]} 15. Bc5 {[%clk 0:02:44]}  Nc8 {[%clk 0:02:18]}
16. Qe2 {[%clk 0:02:33]}  Bh3 {[%clk 0:02:15]} 17. Bxh3 {[%clk 0:02:24]}  Qxh3 {[%clk 0:02:16]} 18. Rfd1 {[%clk 0:02:24]}  e6 {[%clk 0:01:59]}
19. Nb5 {[%clk 0:02:20]}  Rd7 {[%clk 0:01:52]} 20. Ba3 {[%clk 0:02:13]}  Qh5 {[%clk 0:01:28]} 21. Kg2 {[%clk 0:02:11]}  a6 {[%clk 0:01:18]}
22. Nc3 {[%clk 0:02:12]}  Nd6 {[%clk 0:01:19]} 23. Bxd6 {[%clk 0:01:57]}  Rxd6 {[%clk 0:01:21]} 24. Na4 {[%clk 0:01:34]}  Bf8 {[%clk 0:01:10]}
25. Nc5 {[%clk 0:01:34]}  Nd8 {[%clk 0:01:11]} 26. Nd3 {[%clk 0:01:32]}  Nc6 {[%clk 0:01:07]} 27. Nc5 {[%clk 0:01:32]}  Nd8 {[%clk 0:01:09]}
28. Rc2 {[%clk 0:01:32]}  Rc6 {[%clk 0:01:09]} 29. Nd7 {[%clk 0:01:26]}  Bg7 {[%clk 0:01:06]} 30. Rdc1 {[%clk 0:01:25]}  Qf5 {[%clk 0:00:53]}
31. Nfe5 {[%clk 0:01:14]}  Rxc2 {[%clk 0:00:54]} 32. Qxc2 {[%clk 0:01:15]}  f6 {[%clk 0:00:41]} 33. Qxf5 {[%clk 0:01:09]}  gxf5 {[%clk 0:00:43]}
34. Nd3 {[%clk 0:01:10]}  Kf7 {[%clk 0:00:35]} 35. Nb6 {[%clk 0:01:00]}  Bf8 {[%clk 0:00:25]} 36. h3 {[%clk 0:00:54]}  Bd6 {[%clk 0:00:26]}
37. g4 {[%clk 0:00:55]}  fxg4 {[%clk 0:00:26]} 38. hxg4 {[%clk 0:00:56]}  Nc6 {[%clk 0:00:27]} 39. Kf3 {[%clk 0:00:56]}  e5 {[%clk 0:00:26]}
40. dxe5 {[%clk 0:00:53]}  fxe5 {[%clk 0:00:28]} 41. Nc5 {[%clk 0:00:45]}  e4+ {[%clk 0:00:25]} 42. Ke2 {[%clk 0:00:46]}  Bxc5 {[%clk 0:00:24]}
43. Rxc5 {[%clk 0:00:47]}  d4 {[%clk 0:00:25]} 44. exd4 {[%clk 0:00:45]}  Nxd4+ {[%clk 0:00:27]} 45. Ke3 {[%clk 0:00:47]}  Nc6 {[%clk 0:00:28]}
46. Nc4 {[%clk 0:00:45]}  Re6 {[%clk 0:00:27]} 47. a3 {[%clk 0:00:36]}  Ke7 {[%clk 0:00:24]} 48. Rh5 {[%clk 0:00:37]}  h6 {[%clk 0:00:25]}
49. b4 {[%clk 0:00:35]}  b5 {[%clk 0:00:24]} 50. Nd2 {[%clk 0:00:17]}  Ne5 {[%clk 0:00:25]} 51. Kf4 {[%clk 0:00:16]}  Nd3+ {[%clk 0:00:26]}
52. Ke3 {[%clk 0:00:18]}  Ne5 {[%clk 0:00:28]} 53. Kf4 {[%clk 0:00:19]}  Nd3+ {[%clk 0:00:28]} 54. Ke3 {[%clk 0:00:20]}  Ne5 {[%clk 0:00:27]}
55. Kxe4 {[%clk 0:00:00]} 1/2-1/2

[Event "2026 Biel Blitz Open"]
[Site "Biel, CH"]
[Date "2026.07.19"]
[Round "5"]
[White "Amonatov, Farrukh"]
[Black "Kelecevic, Nedeljko"]
[Result "1-0"]
[Board "7"]
[TimeControl "180+2"]
[WhiteFideId "14700077"]
[BlackFideId "14400537"]
[WhiteElo "2585"]
[BlackElo "2150"]
[WhiteTitle "GM"]
[BlackTitle "IM"]
[WhiteClock "0:00:41"]
[BlackClock "0:00:04"]
[Variant "Standard"]
[EndDate "2026.07.19"]
[EndTime "13:09:36"]

1. e4 {[%clk 0:03:03]}  e6 {[%clk 0:03:04]} 2. d4 {[%clk 0:03:03]}  d5 {[%clk 0:03:05]} 3. Nc3 {[%clk 0:03:01]}  Nc6 {[%clk 0:03:06]}
4. Nf3 {[%clk 0:03:02]}  Nf6 {[%clk 0:03:07]} 5. e5 {[%clk 0:03:01]}  Ne4 {[%clk 0:03:08]} 6. Bb5 {[%clk 0:03:02]}  Bd7 {[%clk 0:03:02]}
7. O-O {[%clk 0:03:01]}  Nxc3 {[%clk 0:03:04]} 8. bxc3 {[%clk 0:03:01]}  Nxe5 {[%clk 0:02:57]} 9. Nxe5 {[%clk 0:03:02]}  Bxb5 {[%clk 0:02:58]}
10. Re1 {[%clk 0:03:02]}  Be7 {[%clk 0:02:49]} 11. Qg4 {[%clk 0:02:58]}  O-O {[%clk 0:02:35]} 12. Bh6 {[%clk 0:02:59]}  Bf6 {[%clk 0:02:13]}
13. Re3 {[%clk 0:02:58]}  Bxe5 {[%clk 0:01:59]} 14. dxe5 {[%clk 0:02:50]}  g6 {[%clk 0:01:58]} 15. Bg5 {[%clk 0:02:45]}  f5 {[%clk 0:01:32]}
16. exf6 {[%clk 0:02:45]}  Qd7 {[%clk 0:01:34]} 17. Rae1 {[%clk 0:02:33]}  Rae8 {[%clk 0:01:32]} 18. Qf4 {[%clk 0:02:11]}  e5 {[%clk 0:01:22]}
19. Rxe5 {[%clk 0:02:10]}  Rxe5 {[%clk 0:01:23]} 20. Rxe5 {[%clk 0:02:11]}  Re8 {[%clk 0:01:14]} 21. Re7 {[%clk 0:02:05]}  Rxe7 {[%clk 0:00:54]}
22. fxe7 {[%clk 0:02:06]}  Qe8 {[%clk 0:00:56]} 23. Qxc7 {[%clk 0:02:02]}  Bc6 {[%clk 0:00:54]} 24. h4 {[%clk 0:02:01]}  Kg7 {[%clk 0:00:50]}
25. Qe5+ {[%clk 0:02:02]}  Kg8 {[%clk 0:00:51]} 26. Qe6+ {[%clk 0:01:30]}  Qf7 {[%clk 0:00:49]} 27. Qe5 {[%clk 0:01:25]}  Qe8 {[%clk 0:00:50]}
28. f3 {[%clk 0:01:21]}  a6 {[%clk 0:00:51]} 29. Be3 {[%clk 0:01:08]}  Kf7 {[%clk 0:00:48]} 30. Bc5 {[%clk 0:01:09]}  b6 {[%clk 0:00:43]}
31. Bd6 {[%clk 0:01:07]}  Qd7 {[%clk 0:00:41]} 32. h5 {[%clk 0:01:04]}  Qe6 {[%clk 0:00:37]} 33. Qf4+ {[%clk 0:00:54]}  Qf5 {[%clk 0:00:39]}
34. hxg6+ {[%clk 0:00:54]}  hxg6 {[%clk 0:00:40]} 35. Qxf5+ {[%clk 0:00:45]}  gxf5 {[%clk 0:00:41]} 36. Kf2 {[%clk 0:00:46]}  Ke6 {[%clk 0:00:41]}
37. Ba3 {[%clk 0:00:45]}  f4 {[%clk 0:00:41]} 38. Bc1 {[%clk 0:00:40]}  Kf5 {[%clk 0:00:41]} 39. Kg1 {[%clk 0:00:38]}  Be8 {[%clk 0:00:41]}
40. Kh2 {[%clk 0:00:40]}  Bf7 {[%clk 0:00:42]} 41. a3 {[%clk 0:00:39]}  b5 {[%clk 0:00:42]} 42. Kh3 {[%clk 0:00:39]}  a5 {[%clk 0:00:42]}
43. Bd2 {[%clk 0:00:39]}  Ke6 {[%clk 0:00:37]} 44. Bxf4 {[%clk 0:00:39]}  Kxe7 {[%clk 0:00:39]} 45. Bc7 {[%clk 0:00:39]}  a4 {[%clk 0:00:36]}
46. Kg4 {[%clk 0:00:40]}  Bg6 {[%clk 0:00:38]} 47. f4 {[%clk 0:00:39]}  Ke6 {[%clk 0:00:39]} 48. Kg5 {[%clk 0:00:40]}  Bxc2 {[%clk 0:00:40]}
49. g4 {[%clk 0:00:40]}  b4 {[%clk 0:00:39]} 50. cxb4 {[%clk 0:00:40]}  d4 {[%clk 0:00:40]} 51. f5+ {[%clk 0:00:40]}  Kf7 {[%clk 0:00:36]}
52. Bf4 {[%clk 0:00:40]}  Bd1 {[%clk 0:00:33]} 53. b5 {[%clk 0:00:41]}  Ke8 {[%clk 0:00:04]} 1-0

[Event "2026 Biel Blitz Open"]
[Site "Biel, CH"]
[Date "2026.07.19"]
[Round "5"]
[White "Erne, Raphael"]
[Black "Alexakis, Dimitris"]
[Result "0-1"]
[Board "8"]
[TimeControl "180+2"]
[WhiteFideId "1341928"]
[BlackFideId "4277023"]
[WhiteElo "2128"]
[BlackElo "2459"]
[BlackTitle "GM"]
[WhiteClock "0:00:04"]
[BlackClock "0:00:13"]
[Variant "Standard"]
[EndDate "2026.07.19"]
[EndTime "13:08:43"]

1. c4 {[%clk 0:03:03]}  e5 {[%clk 0:03:02]} 2. g3 {[%clk 0:03:03]}  c6 {[%clk 0:03:00]} 3. d4 {[%clk 0:03:04]}  Bb4+ {[%clk 0:03:01]}
4. Bd2 {[%clk 0:03:00]}  Bxd2+ {[%clk 0:02:59]} 5. Qxd2 {[%clk 0:03:00]}  d6 {[%clk 0:02:59]} 6. Bg2 {[%clk 0:02:53]}  Nf6 {[%clk 0:02:59]}
7. Nc3 {[%clk 0:02:53]}  O-O {[%clk 0:02:48]} 8. e4 {[%clk 0:02:49]}  c5 {[%clk 0:01:56]} 9. d5 {[%clk 0:02:28]}  h5 {[%clk 0:01:53]}
10. h3 {[%clk 0:02:21]}  h4 {[%clk 0:01:48]} 11. Nge2 {[%clk 0:02:07]}  a6 {[%clk 0:01:46]} 12. f4 {[%clk 0:01:52]}  Nbd7 {[%clk 0:01:37]}
13. f5 {[%clk 0:01:26]}  hxg3 {[%clk 0:01:37]} 14. Nxg3 {[%clk 0:01:19]}  Nh5 {[%clk 0:01:36]} 15. Nxh5 {[%clk 0:01:10]}  Qh4+ {[%clk 0:01:36]}
16. Qf2 {[%clk 0:01:05]}  Qxh5 {[%clk 0:01:37]} 17. Bf3 {[%clk 0:01:06]}  Qh6 {[%clk 0:01:37]} 18. Ke2 {[%clk 0:00:56]}  b5 {[%clk 0:01:37]}
19. Qe3 {[%clk 0:00:33]}  bxc4 {[%clk 0:01:09]} 20. Rhg1 {[%clk 0:00:22]}  Qxe3+ {[%clk 0:00:58]} 21. Kxe3 {[%clk 0:00:24]}  Nf6 {[%clk 0:00:47]}
22. Rg2 {[%clk 0:00:25]}  Kh7 {[%clk 0:00:41]} 23. Rag1 {[%clk 0:00:21]}  Rg8 {[%clk 0:00:42]} 24. Be2 {[%clk 0:00:22]}  g6 {[%clk 0:00:43]}
25. fxg6+ {[%clk 0:00:17]}  Rxg6 {[%clk 0:00:42]} 26. Rxg6 {[%clk 0:00:16]}  fxg6 {[%clk 0:00:43]} 27. Bxc4 {[%clk 0:00:18]}  Kg7 {[%clk 0:00:35]}
28. b3 {[%clk 0:00:16]}  Bxh3 {[%clk 0:00:34]} 29. Na4 {[%clk 0:00:12]}  a5 {[%clk 0:00:34]} 30. Nc3 {[%clk 0:00:09]}  Bd7 {[%clk 0:00:30]}
31. Bb5 {[%clk 0:00:07]}  Bg4 {[%clk 0:00:24]} 32. Bc6 {[%clk 0:00:08]}  Rh8 {[%clk 0:00:25]} 33. Nb5 {[%clk 0:00:09]}  Rh3+ {[%clk 0:00:25]}
34. Kd2 {[%clk 0:00:04]}  Nxe4+ {[%clk 0:00:26]} 35. Kc2 {[%clk 0:00:04]}  Bf5 {[%clk 0:00:23]} 36. Kb2 {[%clk 0:00:04]}  g5 {[%clk 0:00:20]}
37. Nc7 {[%clk 0:00:04]}  Rh2+ {[%clk 0:00:19]} 38. Ka3 {[%clk 0:00:04]}  Nc3 {[%clk 0:00:18]} 39. b4 {[%clk 0:00:03]}  cxb4+ {[%clk 0:00:13]}
40. Kb3 {[%clk 0:00:04]}  Bc2+ {[%clk 0:00:14]} 41. Kb2 {[%clk 0:00:03]}  Bd1+ {[%clk 0:00:12]} 42. Kc1 {[%clk 0:00:04]}  Rc2# {[%clk 0:00:13]} 0-1

[Event "2026 Biel Blitz Open"]
[Site "Biel, CH"]
[Date "2026.07.19"]
[Round "5"]
[White "Matsumura, Cocoro"]
[Black "Thorfinnsson, Bjorn"]
[Result "0-1"]
[Board "9"]
[TimeControl "180+2"]
[WhiteFideId "36087114"]
[BlackFideId "2300982"]
[WhiteElo "2131"]
[BlackElo "2396"]
[WhiteTitle "CM"]
[BlackTitle "IM"]
[WhiteClock "0:01:36"]
[BlackClock "0:02:47"]
[Variant "Standard"]
[EndDate "2026.07.19"]
[EndTime "13:03:16"]

1. e4 {[%clk 0:03:03]}  e5 {[%clk 0:03:04]} 2. Nf3 {[%clk 0:03:04]}  Nc6 {[%clk 0:03:05]} 3. Bb5 {[%clk 0:03:05]}  Nge7 {[%clk 0:03:06]}
4. c3 {[%clk 0:03:03]}  d6 {[%clk 0:03:07]} 5. h3 {[%clk 0:03:02]}  Bd7 {[%clk 0:03:08]} 6. O-O {[%clk 0:02:57]}  Ng6 {[%clk 0:03:09]}
7. d4 {[%clk 0:02:58]}  Be7 {[%clk 0:03:10]} 8. Be3 {[%clk 0:02:57]}  O-O {[%clk 0:03:10]} 9. Nbd2 {[%clk 0:02:58]}  Nxd4 {[%clk 0:03:11]}
10. Bxd7 {[%clk 0:02:47]}  Nxf3+ {[%clk 0:03:11]} 11. Nxf3 {[%clk 0:02:47]}  Qxd7 {[%clk 0:03:13]} 12. Qb3 {[%clk 0:02:42]}  b6 {[%clk 0:03:11]}
13. Rad1 {[%clk 0:02:42]}  Kh8 {[%clk 0:03:11]} 14. Qd5 {[%clk 0:02:34]}  Rad8 {[%clk 0:03:00]} 15. Rd2 {[%clk 0:02:18]}  f5 {[%clk 0:02:59]}
16. Bg5 {[%clk 0:02:08]}  fxe4 {[%clk 0:02:54]} 17. Qxe4 {[%clk 0:02:06]}  Rxf3 {[%clk 0:02:47]} 18. Qxf3 {[%clk 0:01:38]}  Bxg5 {[%clk 0:02:48]}
19. Rdd1 {[%clk 0:01:36]}  Rf8 {[%clk 0:02:47]} 0-1

[Event "2026 Biel Blitz Open"]
[Site "Biel, CH"]
[Date "2026.07.19"]
[Round "5"]
[White "Haimovich, Tal"]
[Black "Hakimifard, Ghazal"]
[Result "0-1"]
[Board "10"]
[TimeControl "180+2"]
[WhiteFideId "2801698"]
[BlackFideId "12506540"]
[WhiteElo "2347"]
[BlackElo "2130"]
[WhiteTitle "IM"]
[BlackTitle "WGM"]
[WhiteClock "0:00:27"]
[BlackClock "0:00:27"]
[Variant "Standard"]
[EndDate "2026.07.19"]
[EndTime "13:11:14"]

1. Nf3 {[%clk 0:03:03]}  Nf6 {[%clk 0:03:03]} 2. b3 {[%clk 0:03:04]}  b5 {[%clk 0:03:04]} 3. Bb2 {[%clk 0:03:04]}  Bb7 {[%clk 0:03:05]}
4. e3 {[%clk 0:03:05]}  a6 {[%clk 0:03:07]} 5. a4 {[%clk 0:03:05]}  b4 {[%clk 0:03:06]} 6. c3 {[%clk 0:03:04]}  e6 {[%clk 0:03:07]}
7. d4 {[%clk 0:03:02]}  c5 {[%clk 0:03:04]} 8. c4 {[%clk 0:02:58]}  d5 {[%clk 0:02:54]} 9. Nbd2 {[%clk 0:02:56]}  Be7 {[%clk 0:02:33]}
10. Rc1 {[%clk 0:02:54]}  Nbd7 {[%clk 0:02:33]} 11. Be2 {[%clk 0:02:52]}  O-O {[%clk 0:02:33]} 12. O-O {[%clk 0:02:50]}  Rc8 {[%clk 0:02:18]}
13. cxd5 {[%clk 0:02:44]}  Nxd5 {[%clk 0:02:15]} 14. Nc4 {[%clk 0:02:39]}  cxd4 {[%clk 0:01:59]} 15. Nxd4 {[%clk 0:02:30]}  Nc5 {[%clk 0:01:58]}
16. Ne5 {[%clk 0:02:08]}  Bd6 {[%clk 0:01:36]} 17. Ndf3 {[%clk 0:01:54]}  Ne4 {[%clk 0:01:34]} 18. Bc4 {[%clk 0:01:40]}  Ndc3 {[%clk 0:01:27]}
19. Qc2 {[%clk 0:01:33]}  Qc7 {[%clk 0:01:25]} 20. Nd3 {[%clk 0:01:30]}  Rfd8 {[%clk 0:01:23]} 21. h3 {[%clk 0:01:25]}  Qa5 {[%clk 0:01:20]}
22. Nf4 {[%clk 0:01:17]}  Qf5 {[%clk 0:01:09]} 23. Ne2 {[%clk 0:01:13]}  Bd5 {[%clk 0:00:46]} 24. Bxd5 {[%clk 0:00:53]}  exd5 {[%clk 0:00:47]}
25. Ned4 {[%clk 0:00:51]}  Qg6 {[%clk 0:00:46]} 26. Qd3 {[%clk 0:00:50]}  h5 {[%clk 0:00:39]} 27. Bxc3 {[%clk 0:00:49]}  bxc3 {[%clk 0:00:39]}
28. Rc2 {[%clk 0:00:47]}  Rd7 {[%clk 0:00:31]} 29. Qe2 {[%clk 0:00:45]}  Bb4 {[%clk 0:00:28]} 30. Rfc1 {[%clk 0:00:45]}  Rdc7 {[%clk 0:00:30]}
31. Qd3 {[%clk 0:00:44]}  Ba3 {[%clk 0:00:31]} 32. Rd1 {[%clk 0:00:44]}  Bb4 {[%clk 0:00:30]} 33. Ne2 {[%clk 0:00:44]}  Rd8 {[%clk 0:00:28]}
34. Nf4 {[%clk 0:00:42]}  Qf5 {[%clk 0:00:27]} 35. Nxd5 {[%clk 0:00:39]}  Rcd7 {[%clk 0:00:23]} 36. Nd4 {[%clk 0:00:32]}  Qxd5 {[%clk 0:00:24]}
37. Rdc1 {[%clk 0:00:31]}  Rc8 {[%clk 0:00:24]} 38. Rf1 {[%clk 0:00:31]}  Nd2 {[%clk 0:00:24]} 39. Rd1 {[%clk 0:00:31]}  Rcd8 {[%clk 0:00:24]}
40. Rdc1 {[%clk 0:00:29]}  Nxb3 {[%clk 0:00:24]} 41. Rb1 {[%clk 0:00:28]}  Nxd4 {[%clk 0:00:24]} 42. exd4 {[%clk 0:00:29]}  Qxd4 {[%clk 0:00:24]}
43. Qxa6 {[%clk 0:00:29]}  Be7 {[%clk 0:00:23]} 44. Rbc1 {[%clk 0:00:29]}  Bf6 {[%clk 0:00:24]} 45. Rxc3 {[%clk 0:00:29]}  Qxc3 {[%clk 0:00:24]}
46. Rxc3 {[%clk 0:00:30]}  Bxc3 {[%clk 0:00:23]} 47. g3 {[%clk 0:00:30]}  Rd2 {[%clk 0:00:23]} 48. Qb6 {[%clk 0:00:27]}  Re8 {[%clk 0:00:24]}
49. a5 {[%clk 0:00:27]}  Bd4 {[%clk 0:00:26]} 50. Qb5 {[%clk 0:00:27]}  Rc8 {[%clk 0:00:26]} 51. a6 {[%clk 0:00:27]}  Rc1+ {[%clk 0:00:27]} 0-1

[Event "2026 Biel Blitz Open"]
[Site "Biel, CH"]
[Date "2026.07.19"]
[Round "5"]
[White "Habibi, Ali"]
[Black "Tureshbayev, Anuar"]
[Result "1-0"]
[Board "11"]
[TimeControl "180+2"]
[WhiteFideId "4604393"]
[BlackFideId "651081709"]
[WhiteElo "2116"]
[BlackElo "2328"]
[WhiteTitle "IM"]
[BlackTitle "FM"]
[WhiteClock "0:00:14"]
[BlackClock "0:03:02"]
[Variant "Standard"]
[EndDate "2026.07.19"]
[EndTime "13:08:36"]

1. Nf3 {[%clk 0:03:03]}  Nf6 {[%clk 0:03:03]} 2. g3 {[%clk 0:03:04]}  b5 {[%clk 0:03:04]} 3. Bg2 {[%clk 0:03:04]}  Bb7 {[%clk 0:03:06]}
4. O-O {[%clk 0:03:04]}  e6 {[%clk 0:03:06]} 5. d3 {[%clk 0:03:04]}  c5 {[%clk 0:03:06]} 6. e4 {[%clk 0:03:04]}  d6 {[%clk 0:03:07]}
7. Nfd2 {[%clk 0:03:00]}  Nc6 {[%clk 0:02:59]} 8. f4 {[%clk 0:02:57]}  Be7 {[%clk 0:02:59]} 9. Nc3 {[%clk 0:02:57]}  a6 {[%clk 0:02:50]}
10. a3 {[%clk 0:02:53]}  d5 {[%clk 0:02:39]} 11. f5 {[%clk 0:02:39]}  exf5 {[%clk 0:02:17]} 12. Nxd5 {[%clk 0:02:23]}  fxe4 {[%clk 0:01:55]}
13. dxe4 {[%clk 0:02:13]}  O-O {[%clk 0:01:34]} 14. c4 {[%clk 0:01:58]}  Nd4 {[%clk 0:00:49]} 15. b3 {[%clk 0:01:59]}  Nxd5 {[%clk 0:00:45]}
16. exd5 {[%clk 0:01:55]}  Bf6 {[%clk 0:00:45]} 17. Rb1 {[%clk 0:01:53]}  Bc8 {[%clk 0:00:36]} 18. Ne4 {[%clk 0:01:53]}  Be5 {[%clk 0:00:37]}
19. Be3 {[%clk 0:01:45]}  Bf5 {[%clk 0:00:35]} 20. Kh1 {[%clk 0:01:38]}  Bg6 {[%clk 0:00:37]} 21. Rc1 {[%clk 0:01:26]}  bxc4 {[%clk 0:00:28]}
22. bxc4 {[%clk 0:01:27]}  Qa5 {[%clk 0:00:29]} 23. Qd2 {[%clk 0:00:37]}  Qxa3 {[%clk 0:00:14]} 24. Ra1 {[%clk 0:00:31]}  Qb3 {[%clk 0:00:12]}
25. Rac1 {[%clk 0:00:26]}  Bxe4 {[%clk 0:00:07]} 26. Bxe4 {[%clk 0:00:26]}  Rab8 {[%clk 0:00:09]} 27. Bf4 {[%clk 0:00:13]}  Bxf4 {[%clk 0:00:09]}
28. Qxf4 {[%clk 0:00:14]}  Qb2 {[%clk 0:00:07]} 29. Rb1 {[%clk 0:00:13]}  Qe2 {[%clk 0:00:03]} 30. Rxb8 {[%clk 0:00:13]}  Qxf1+ {[%clk 0:00:04]}
31. Qxf1 {[%clk 0:00:14]}  Rxb8 {[%clk 0:00:05]} 32. Kg2 {[%clk 0:00:13]}  a5 {[%clk 0:00:07]} 33. Qa1 {[%clk 0:00:14]}  Ra8 {[%clk 0:00:07]}
34. Qa3 {[%clk 0:00:14]}  f5 {[%clk 0:00:07]} 35. Bf3 {[%clk 0:00:13]}  a4 {[%clk 0:00:08]} 36. Qxc5 {[%clk 0:00:10]}  Nc2 {[%clk 0:00:05]}
37. d6 {[%clk 0:00:13]}  Re8 {[%clk 0:00:05]} 38. Bd5+ {[%clk 0:00:13]}  Kh8 {[%clk 0:00:06]} 39. d7 {[%clk 0:00:14]}  Ne3+ {[%clk 0:00:07]}
40. Qxe3 {[%clk 0:00:14]}  Rd8 {[%clk 0:03:02]} 41. Qe8+ {[%clk 0:00:14]} 1-0

[Event "2026 Biel Blitz Open"]
[Site "Biel, CH"]
[Date "2026.07.19"]
[Round "5"]
[White "Aryan Mehta"]
[Black "Dong, Hongfu"]
[Result "0-1"]
[Board "12"]
[TimeControl "180+2"]
[WhiteFideId "33329664"]
[BlackFideId "8626960"]
[WhiteElo "2061"]
[BlackElo "2290"]
[WhiteClock "0:00:37"]
[BlackClock "0:01:49"]
[Variant "Standard"]
[EndDate "2026.07.19"]
[EndTime "13:07:01"]

1. d4 {[%clk 0:03:03]}  f5 {[%clk 0:03:02]} 2. e4 {[%clk 0:03:04]}  fxe4 {[%clk 0:03:03]} 3. Nc3 {[%clk 0:03:05]}  Nf6 {[%clk 0:03:01]}
4. Bg5 {[%clk 0:03:06]}  g6 {[%clk 0:03:02]} 5. f3 {[%clk 0:03:06]}  d5 {[%clk 0:03:03]} 6. Bxf6 {[%clk 0:03:00]}  exf6 {[%clk 0:03:04]}
7. fxe4 {[%clk 0:03:01]}  dxe4 {[%clk 0:03:05]} 8. Nxe4 {[%clk 0:02:59]}  f5 {[%clk 0:03:00]} 9. Ng3 {[%clk 0:02:52]}  Bg7 {[%clk 0:03:01]}
10. Nf3 {[%clk 0:02:53]}  O-O {[%clk 0:03:02]} 11. Be2 {[%clk 0:02:52]}  Nc6 {[%clk 0:02:44]} 12. c3 {[%clk 0:02:54]}  Be6 {[%clk 0:02:43]}
13. O-O {[%clk 0:02:53]}  Qd6 {[%clk 0:02:31]} 14. Ng5 {[%clk 0:02:21]}  Bd5 {[%clk 0:02:33]} 15. c4 {[%clk 0:02:17]}  Bxd4+ {[%clk 0:02:33]}
16. Kh1 {[%clk 0:02:15]}  Bf7 {[%clk 0:02:33]} 17. Bf3 {[%clk 0:02:10]}  Bxc4 {[%clk 0:02:26]} 18. Be2 {[%clk 0:01:39]}  Bd5 {[%clk 0:02:22]}
19. Bf3 {[%clk 0:01:32]}  Rad8 {[%clk 0:02:23]} 20. Re1 {[%clk 0:01:30]}  Bf6 {[%clk 0:02:00]} 21. Bxd5+ {[%clk 0:01:22]}  Qxd5 {[%clk 0:02:01]}
22. Ne6 {[%clk 0:01:22]}  Qxd1 {[%clk 0:02:02]} 23. Raxd1 {[%clk 0:01:22]}  Rxd1 {[%clk 0:02:02]} 24. Rxd1 {[%clk 0:01:24]}  Rf7 {[%clk 0:02:02]}
25. b3 {[%clk 0:01:06]}  Be5 {[%clk 0:02:04]} 26. Ne2 {[%clk 0:01:03]}  Bd6 {[%clk 0:02:05]} 27. Nc3 {[%clk 0:01:00]}  Re7 {[%clk 0:02:06]}
28. Ng5 {[%clk 0:00:59]}  Re3 {[%clk 0:02:03]} 29. Nd5 {[%clk 0:00:55]}  Re5 {[%clk 0:01:55]} 30. Nf3 {[%clk 0:00:51]}  Re2 {[%clk 0:01:55]}
31. a4 {[%clk 0:00:46]}  Kg7 {[%clk 0:01:56]} 32. Kg1 {[%clk 0:00:44]}  Ne7 {[%clk 0:01:47]} 33. Nxe7 {[%clk 0:00:36]}  Rxe7 {[%clk 0:01:48]}
34. Nd4 {[%clk 0:00:37]}  Bc5 {[%clk 0:01:49]} 0-1